[Event "*** Titled Tuesday Blitz"]
[Site "Chess.com"]
[Date "2019.06.04"]
[Round "7"]
[White "akretchetov"]
[Black "Rumpel-VK"]
[Result "0-1"]
[WhiteElo "2362"]
[BlackElo "2586"]
[TimeControl "180+2"]
[EndTime "14:35:11 PDT"]
[Termination "Rumpel-VK won by resignation"]

1. Nf3 {[%clk 0:02:55.4]} 1... d5 {[%clk 0:02:59.2]} 2. d4 {[%clk 0:02:56.1]}
2... a6 {[%clk 0:02:54.9]} 3. c4 {[%clk 0:02:51.5]} 3... dxc4 {[%clk 0:02:55.4]}
4. e3 {[%clk 0:02:51.6]} 4... Bg4 {[%clk 0:02:56.3]} 5. h3 {[%clk 0:02:45.3]}
5... Bh5 {[%clk 0:02:56.5]} 6. Bxc4 {[%clk 0:02:45.3]} 6... e6 {[%clk
0:02:57.3]} 7. O-O {[%clk 0:02:44.2]} 7... Nf6 {[%clk 0:02:48.6]} 8. Be2 {[%clk
0:02:39.6]} 8... Nc6 {[%clk 0:02:45.5]} 9. b3 {[%clk 0:02:35.5]} 9... Bd6 {[%clk
0:02:45.3]} 10. Bb2 {[%clk 0:02:36.7]} 10... O-O {[%clk 0:02:45.9]} 11. Nbd2
{[%clk 0:02:37.6]} 11... Qe7 {[%clk 0:02:36.9]} 12. Nc4 {[%clk 0:02:35.6]} 12...
Rfd8 {[%clk 0:02:34]} 13. Nxd6 {[%clk 0:02:29.5]} 13... cxd6 {[%clk 0:02:33.1]}
14. Rc1 {[%clk 0:02:26.6]} 14... Rac8 {[%clk 0:02:27.3]} 15. Ba3 {[%clk
0:02:07.7]} 15... Qc7 {[%clk 0:02:11.7]} 16. Qe1 {[%clk 0:01:59]} 16... Qb6
{[%clk 0:01:56.8]} 17. Nd2 {[%clk 0:01:57.3]} 17... Bxe2 {[%clk 0:01:53.5]} 18.
Qxe2 {[%clk 0:01:58]} 18... d5 {[%clk 0:01:53.6]} 19. Bc5 {[%clk 0:01:40.2]}
19... Qc7 {[%clk 0:01:43.2]} 20. a4 {[%clk 0:01:32.2]} 20... b6 {[%clk
0:01:34.5]} 21. Ba3 {[%clk 0:01:32.7]} 21... Qb7 {[%clk 0:01:35.5]} 22. Qd3
{[%clk 0:01:26.7]} 22... h6 {[%clk 0:01:33.5]} 23. Rc2 {[%clk 0:01:25.3]} 23...
Na7 {[%clk 0:01:22]} 24. Rfc1 {[%clk 0:01:24.2]} 24... Rxc2 {[%clk 0:01:22.6]}
25. Rxc2 {[%clk 0:01:25.3]} 25... Rc8 {[%clk 0:01:23.5]} 26. Nf3 {[%clk
0:01:06.9]} 26... Nd7 {[%clk 0:01:16.6]} 27. Qd1 {[%clk 0:01:03.1]} 27... Rxc2
{[%clk 0:01:15]} 28. Qxc2 {[%clk 0:01:04.1]} 28... Qc6 {[%clk 0:01:12.9]} 29.
Qxc6 {[%clk 0:01:04.6]} 29... Nxc6 {[%clk 0:01:13.3]} 30. Nd2 {[%clk 0:01:05.5]}
30... f6 {[%clk 0:01:12.2]} 31. Kf1 {[%clk 0:01:05.1]} 31... Kf7 {[%clk
0:01:12.8]} 32. Ke2 {[%clk 0:01:06]} 32... g5 {[%clk 0:01:11]} 33. Kd3 {[%clk
0:01:06.2]} 33... f5 {[%clk 0:01:11.1]} 34. f3 {[%clk 0:01:03.5]} 34... e5
{[%clk 0:01:02.7]} 35. dxe5 {[%clk 0:00:56.8]} 35... Ndxe5+ {[%clk 0:01:03.5]}
36. Kc3 {[%clk 0:00:55.7]} 36... Ke6 {[%clk 0:01:03.7]} 37. Bf8 {[%clk
0:00:54.3]} 37... h5 {[%clk 0:01:03.7]} 38. Bh6 {[%clk 0:00:51.8]} 38... g4
{[%clk 0:01:04.3]} 39. hxg4 {[%clk 0:00:51.4]} 39... fxg4 {[%clk 0:01:04.9]} 40.
Bf4 {[%clk 0:00:46]} 40... gxf3 {[%clk 0:01:03.5]} 41. Nxf3 {[%clk 0:00:43.4]}
41... Nxf3 {[%clk 0:01:00.9]} 42. gxf3 {[%clk 0:00:44.5]} 42... d4+ {[%clk
0:00:54]} 43. exd4 {[%clk 0:00:43.8]} 43... Kd5 {[%clk 0:00:54.8]} 44. Bc7
{[%clk 0:00:32.2]} 44... b5 {[%clk 0:00:51]} 45. axb5 {[%clk 0:00:33.1]} 45...
axb5 {[%clk 0:00:52.2]} 46. Bg3 {[%clk 0:00:26.5]} 46... Nxd4 {[%clk 0:00:51.7]}
47. f4 {[%clk 0:00:24.8]} 47... Ne2+ {[%clk 0:00:51.3]} 0-1

[Event "*** Titled Tuesday Blitz"]
[Site "Chess.com"]
[Date "2019.06.04"]
[Round "7"]
[White "fish7728"]
[Black "Haykos"]
[Result "0-1"]
[WhiteElo "2235"]
[BlackElo "2542"]
[TimeControl "180+2"]
[EndTime "14:35:12 PDT"]
[Termination "Haykos won by resignation"]

1. d4 {[%clk 0:03:01.9]} 1... d5 {[%clk 0:03:00.7]} 2. c4 {[%clk 0:02:58.5]}
2... dxc4 {[%clk 0:03:00.7]} 3. Nf3 {[%clk 0:02:57.3]} 3... Nf6 {[%clk
0:02:54.9]} 4. e3 {[%clk 0:02:57.5]} 4... Bg4 {[%clk 0:02:47.4]} 5. Bxc4 {[%clk
0:02:57.6]} 5... e6 {[%clk 0:02:31.9]} 6. h3 {[%clk 0:02:55.5]} 6... Bh5 {[%clk
0:02:27.5]} 7. Nbd2 {[%clk 0:02:48.6]} 7... Nbd7 {[%clk 0:02:27.4]} 8. O-O
{[%clk 0:02:39.9]} 8... c5 {[%clk 0:02:28.5]} 9. dxc5 {[%clk 0:02:25.9]} 9...
Bxc5 {[%clk 0:02:30.1]} 10. b3 {[%clk 0:02:26.5]} 10... O-O {[%clk 0:02:28]} 11.
Bb2 {[%clk 0:02:26.3]} 11... a6 {[%clk 0:02:29.5]} 12. a4 {[%clk 0:02:19.7]}
12... Qe7 {[%clk 0:02:29.6]} 13. Rc1 {[%clk 0:01:55.2]} 13... Rac8 {[%clk
0:02:28.8]} 14. Be2 {[%clk 0:01:41.7]} 14... Rfd8 {[%clk 0:02:28.6]} 15. Qc2
{[%clk 0:01:19.7]} 15... Bg6 {[%clk 0:02:20.5]} 16. Bd3 {[%clk 0:01:13.1]} 16...
Bxd3 {[%clk 0:02:18]} 17. Qxd3 {[%clk 0:01:13.2]} 17... Ne5 {[%clk 0:02:19.9]}
18. Qb1 {[%clk 0:01:05.9]} 18... Nd3 {[%clk 0:02:21.2]} 19. Rc2 {[%clk
0:00:52.4]} 19... Nxb2 {[%clk 0:01:00.2]} 20. Qxb2 {[%clk 0:00:51.2]} 20... Ba3
{[%clk 0:00:59.3]} 21. Qb1 {[%clk 0:00:52.2]} 21... h6 {[%clk 0:00:52.7]} 22.
Nc4 {[%clk 0:00:52.3]} 22... Bb4 {[%clk 0:00:45.6]} 23. Rfc1 {[%clk 0:00:45.2]}
23... Nd5 {[%clk 0:00:41.4]} 24. Qa1 {[%clk 0:00:32.8]} 24... b5 {[%clk
0:00:38.3]} 25. Nce5 {[%clk 0:00:19.2]} 25... Bc3 {[%clk 0:00:34]} 26. Qb1
{[%clk 0:00:17.3]} 26... b4 {[%clk 0:00:34.1]} 27. Nd4 {[%clk 0:00:12.2]} 27...
f6 {[%clk 0:00:33.2]} 28. Nec6 {[%clk 0:00:12.3]} 28... Qd6 {[%clk 0:00:33.8]}
29. Nxd8 {[%clk 0:00:11.6]} 29... Rxd8 {[%clk 0:00:35.7]} 30. Nf3 {[%clk
0:00:07.8]} 30... a5 {[%clk 0:00:35.1]} 31. Rd1 {[%clk 0:00:08.8]} 31... Rc8
{[%clk 0:00:35.5]} 32. Re2 {[%clk 0:00:06.7]} 32... Qa6 {[%clk 0:00:34.8]} 33.
Qd3 {[%clk 0:00:06.3]} 33... Qc6 {[%clk 0:00:34.2]} 34. e4 {[%clk 0:00:06.5]}
34... Nf4 {[%clk 0:00:35.6]} 35. Qd7 {[%clk 0:00:04.3]} 35... Nxe2+ {[%clk
0:00:36.4]} 36. Kf1 {[%clk 0:00:04.9]} 36... Qxd7 {[%clk 0:00:38.3]} 37. Rxd7
{[%clk 0:00:05.1]} 37... Nf4 {[%clk 0:00:39.8]} 38. g3 {[%clk 0:00:04.8]} 38...
Ng6 {[%clk 0:00:41.4]} 39. Ra7 {[%clk 0:00:05.4]} 39... Ne5 {[%clk 0:00:41.8]}
40. Nxe5 {[%clk 0:00:05.4]} 40... Bxe5 {[%clk 0:00:42.7]} 41. Rxa5 {[%clk
0:00:07]} 41... Rc3 {[%clk 0:00:44.3]} 0-1

[Event "*** Titled Tuesday Blitz"]
[Site "Chess.com"]
[Date "2019.06.04"]
[Round "7"]
[White "LonesomeGeorge1"]
[Black "x-5963514717"]
[Result "1/2-1/2"]
[WhiteElo "2387"]
[BlackElo "2500"]
[TimeControl "180+2"]
[EndTime "14:35:16 PDT"]
[Termination "Game drawn - insufficient material"]

1. e4 {[%clk 0:03:01.9]} 1... e5 {[%clk 0:03:00.8]} 2. Nf3 {[%clk 0:03:02.6]}
2... Nc6 {[%clk 0:03:02.3]} 3. Bb5 {[%clk 0:03:03.4]} 3... a6 {[%clk 0:03:03.1]}
4. Ba4 {[%clk 0:03:04.4]} 4... Nge7 {[%clk 0:03:04.3]} 5. Bb3 {[%clk 0:03:03.1]}
5... Ng6 {[%clk 0:02:40.6]} 6. h4 {[%clk 0:02:57.2]} 6... Be7 {[%clk 0:02:17.6]}
7. d4 {[%clk 0:02:56.7]} 7... Nxd4 {[%clk 0:02:13.9]} 8. Nxd4 {[%clk 0:02:54.9]}
8... exd4 {[%clk 0:02:14.8]} 9. h5 {[%clk 0:02:53.7]} 9... Ne5 {[%clk
0:01:56.9]} 10. Qxd4 {[%clk 0:02:50.3]} 10... Bf6 {[%clk 0:01:52.9]} 11. Qe3
{[%clk 0:02:44.4]} 11... d6 {[%clk 0:01:50.2]} 12. Nc3 {[%clk 0:02:42.7]} 12...
c6 {[%clk 0:01:44.5]} 13. Bd2 {[%clk 0:02:37.3]} 13... h6 {[%clk 0:01:39.9]} 14.
Qg3 {[%clk 0:02:29.1]} 14... Qe7 {[%clk 0:01:29.8]} 15. O-O-O {[%clk 0:02:21.7]}
15... Be6 {[%clk 0:01:24.8]} 16. f4 {[%clk 0:02:17.6]} 16... Bxb3 {[%clk
0:01:10.5]} 17. axb3 {[%clk 0:02:11.3]} 17... Nd7 {[%clk 0:01:11.7]} 18. Rde1
{[%clk 0:02:04.1]} 18... O-O {[%clk 0:01:07.4]} 19. e5 {[%clk 0:01:57.4]} 19...
dxe5 {[%clk 0:01:08.4]} 20. fxe5 {[%clk 0:01:58.4]} 20... Bg5 {[%clk 0:01:08.7]}
21. Bxg5 {[%clk 0:01:53.7]} 21... Qxg5+ {[%clk 0:01:09.2]} 22. Qxg5 {[%clk
0:01:54.7]} 22... hxg5 {[%clk 0:01:11.1]} 23. e6 {[%clk 0:01:56.6]} 23... fxe6
{[%clk 0:01:08.7]} 24. Rxe6 {[%clk 0:01:58.5]} 24... Rae8 {[%clk 0:01:06.2]} 25.
Rd6 {[%clk 0:01:39.1]} 25... Nf6 {[%clk 0:01:07]} 26. h6 {[%clk 0:01:39.9]}
26... gxh6 {[%clk 0:01:03.3]} 27. Rxh6 {[%clk 0:01:40.4]} 27... Kg7 {[%clk
0:01:04.5]} 28. Rh1 {[%clk 0:01:38.1]} 28... Rd8 {[%clk 0:01:04.8]} 29. Rhd1
{[%clk 0:01:37.5]} 29... Rxd6 {[%clk 0:01:04.8]} 30. Rxd6 {[%clk 0:01:39.4]}
30... Rh8 {[%clk 0:01:03.8]} 31. Kd1 {[%clk 0:01:34.9]} 31... Rh2 {[%clk
0:01:03.2]} 32. Rd2 {[%clk 0:01:34.9]} 32... Kg6 {[%clk 0:01:01.8]} 33. Ke1
{[%clk 0:01:35.7]} 33... Kf5 {[%clk 0:00:59.4]} 34. Kf2 {[%clk 0:01:26.6]} 34...
Rh8 {[%clk 0:00:54.9]} 35. Re2 {[%clk 0:01:22.6]} 35... Rd8 {[%clk 0:00:53.6]}
36. Na4 {[%clk 0:01:22.6]} 36... Ne4+ {[%clk 0:00:41.6]} 37. Ke3 {[%clk
0:01:22.7]} 37... b5 {[%clk 0:00:37.6]} 38. g4+ {[%clk 0:01:16.8]} 38... Kxg4
{[%clk 0:00:35.8]} 39. Kxe4 {[%clk 0:01:17.9]} 39... Re8+ {[%clk 0:00:33.8]} 40.
Kd3 {[%clk 0:01:19]} 40... Rxe2 {[%clk 0:00:34.7]} 41. Kxe2 {[%clk 0:01:20.5]}
41... bxa4 {[%clk 0:00:36.3]} 42. bxa4 {[%clk 0:01:22]} 42... Kh3 {[%clk
0:00:34.8]} 43. Kf2 {[%clk 0:01:08.4]} 43... g4 {[%clk 0:00:32.5]} 44. Kg1
{[%clk 0:01:09]} 44... Kg3 {[%clk 0:00:34]} 45. b4 {[%clk 0:01:10.4]} 45... Kf4
{[%clk 0:00:32.3]} 46. c4 {[%clk 0:01:11.4]} 46... Ke5 {[%clk 0:00:31.2]} 47. b5
{[%clk 0:01:11]} 47... cxb5 {[%clk 0:00:26.2]} 48. cxb5 {[%clk 0:01:10.2]} 48...
axb5 {[%clk 0:00:22.6]} 49. axb5 {[%clk 0:01:11.3]} 49... Kd6 {[%clk 0:00:23.9]}
50. Kg2 {[%clk 0:01:13.1]} 50... Kc5 {[%clk 0:00:24.5]} 51. Kg3 {[%clk 0:01:15]}
51... Kxb5 {[%clk 0:00:25.5]} 52. Kxg4 {[%clk 0:01:16.9]} 1/2-1/2

[Event "*** Titled Tuesday Blitz"]
[Site "Chess.com"]
[Date "2019.06.04"]
[Round "7"]
[White "FMJoseHerrera"]
[Black "SARGISMV"]
[Result "1-0"]
[WhiteElo "2614"]
[BlackElo "2425"]
[TimeControl "180+2"]
[EndTime "14:35:16 PDT"]
[Termination "FMJoseHerrera won by resignation"]

1. Nf3 {[%clk 0:03:01.3]} 1... Nf6 {[%clk 0:03:00.3]} 2. g3 {[%clk 0:03:02]}
2... g6 {[%clk 0:03:01.1]} 3. Bg2 {[%clk 0:03:02.8]} 3... Bg7 {[%clk 0:03:03]}
4. d3 {[%clk 0:03:04.5]} 4... O-O {[%clk 0:03:03.9]} 5. Nc3 {[%clk 0:03:06.4]}
5... d6 {[%clk 0:03:04.9]} 6. h4 {[%clk 0:03:08.3]} 6... Bg4 {[%clk 0:03:04.4]}
7. Nh2 {[%clk 0:03:07.4]} 7... Bd7 {[%clk 0:03:01.9]} 8. Nf3 {[%clk 0:03:05.3]}
8... h5 {[%clk 0:03:00.7]} 9. Bg5 {[%clk 0:03:05.7]} 9... c5 {[%clk 0:02:58]}
10. Qd2 {[%clk 0:03:05.8]} 10... Bc6 {[%clk 0:02:54.1]} 11. Bh6 {[%clk
0:03:00.6]} 11... Nbd7 {[%clk 0:02:52.1]} 12. Bxg7 {[%clk 0:02:59.8]} 12... Kxg7
{[%clk 0:02:54]} 13. e4 {[%clk 0:02:54.6]} 13... b5 {[%clk 0:02:48.5]} 14. O-O
{[%clk 0:02:50.7]} 14... b4 {[%clk 0:02:48.5]} 15. Ne2 {[%clk 0:02:47.5]} 15...
Ng4 {[%clk 0:02:49.2]} 16. Ng5 {[%clk 0:02:43]} 16... Qb6 {[%clk 0:02:35.2]} 17.
Nf4 {[%clk 0:02:35.4]} 17... Nde5 {[%clk 0:02:28.2]} 18. c3 {[%clk 0:02:28.6]}
18... bxc3 {[%clk 0:02:27.4]} 19. bxc3 {[%clk 0:02:28.6]} 19... Qa6 {[%clk
0:02:25.2]} 20. d4 {[%clk 0:02:13.4]} 20... cxd4 {[%clk 0:02:19.8]} 21. cxd4
{[%clk 0:02:15.3]} 21... Nc4 {[%clk 0:02:11.7]} 22. Qd3 {[%clk 0:02:12.6]} 22...
Qa4 {[%clk 0:01:56.1]} 23. Nxh5+ {[%clk 0:01:10.2]} 23... gxh5 {[%clk
0:01:43.9]} 24. e5 {[%clk 0:01:09]} 24... Rh8 {[%clk 0:01:43.2]} 25. Rfc1 {[%clk
0:00:18]} 25... d5 {[%clk 0:01:28.7]} 26. Qf5 {[%clk 0:00:16.8]} 26... Raf8
{[%clk 0:01:22.7]} 27. Nh3 {[%clk 0:00:18.1]} 27... f6 {[%clk 0:01:01.8]} 28.
Nf4 {[%clk 0:00:18.6]} 28... Be8 {[%clk 0:00:48]} 29. Ne6+ {[%clk 0:00:19.8]}
29... Kh6 {[%clk 0:00:39]} 30. Nxf8 {[%clk 0:00:20.7]} 30... Rxf8 {[%clk
0:00:39.2]} 31. Bxd5 {[%clk 0:00:22]} 31... Nb6 {[%clk 0:00:33.6]} 32. Be4
{[%clk 0:00:23.4]} 32... Rh8 {[%clk 0:00:26]} 33. exf6 {[%clk 0:00:24.5]} 33...
exf6 {[%clk 0:00:21.5]} 34. Qf4+ {[%clk 0:00:25.6]} 34... Kg7 {[%clk 0:00:19.1]}
35. Rc7+ {[%clk 0:00:27.5]} 35... Nd7 {[%clk 0:00:20]} 36. Re1 {[%clk
0:00:24.5]} 36... Qxd4 {[%clk 0:00:20.8]} 37. Qf5 {[%clk 0:00:22.5]} 37... Rh6
{[%clk 0:00:21.1]} 38. Bg2 {[%clk 0:00:21]} 38... Ne5 {[%clk 0:00:21.9]} 39. Qf4
{[%clk 0:00:21]} 39... Bg6 {[%clk 0:00:23.2]} 40. Qxd4 {[%clk 0:00:21.5]} 1-0

[Event "*** Titled Tuesday Blitz"]
[Site "Chess.com"]
[Date "2019.06.04"]
[Round "7"]
[White "Vusatiuk_Vladimir"]
[Black "Komissarov_alex"]
[Result "1-0"]
[WhiteElo "2211"]
[BlackElo "2101"]
[TimeControl "180+2"]
[EndTime "14:35:16 PDT"]
[Termination "Vusatiuk_Vladimir won on time"]

1. e4 {[%clk 0:03:01.9]} 1... e5 {[%clk 0:02:59.1]} 2. Nf3 {[%clk 0:03:02.9]}
2... Nc6 {[%clk 0:02:59.6]} 3. d4 {[%clk 0:03:03.6]} 3... exd4 {[%clk
0:02:49.6]} 4. Nxd4 {[%clk 0:03:05.5]} 4... Nf6 {[%clk 0:02:48.4]} 5. Nxc6
{[%clk 0:03:06.3]} 5... bxc6 {[%clk 0:02:46.8]} 6. e5 {[%clk 0:03:07.1]} 6...
Qe7 {[%clk 0:02:47.8]} 7. Qe2 {[%clk 0:03:08.2]} 7... Nd5 {[%clk 0:02:47.7]} 8.
h4 {[%clk 0:03:09.5]} 8... a5 {[%clk 0:02:43.9]} 9. c4 {[%clk 0:03:04.9]} 9...
Ba6 {[%clk 0:02:38.8]} 10. Bg5 {[%clk 0:02:47.6]} 10... f6 {[%clk 0:02:28.5]}
11. exf6 {[%clk 0:02:48.3]} 11... Nxf6 {[%clk 0:02:19.2]} 12. Bxf6 {[%clk
0:02:48.7]} 12... gxf6 {[%clk 0:02:19]} 13. Nc3 {[%clk 0:02:45.5]} 13... Rb8
{[%clk 0:02:02.6]} 14. b3 {[%clk 0:02:43.9]} 14... Qxe2+ {[%clk 0:01:59.8]} 15.
Bxe2 {[%clk 0:02:41]} 15... Bb4 {[%clk 0:01:46.2]} 16. Kd2 {[%clk 0:02:37.2]}
16... d5 {[%clk 0:01:42.9]} 17. Kc2 {[%clk 0:02:16.4]} 17... dxc4 {[%clk
0:01:30.4]} 18. bxc4 {[%clk 0:02:10.6]} 18... Bc5 {[%clk 0:01:23.4]} 19. Ne4
{[%clk 0:02:07.5]} 19... Bd4 {[%clk 0:01:06.9]} 20. Rab1 {[%clk 0:02:05.2]}
20... Kf7 {[%clk 0:01:04.6]} 21. Rhd1 {[%clk 0:02:00.4]} 21... c5 {[%clk
0:01:01.7]} 22. f3 {[%clk 0:01:50.4]} 22... Rhe8 {[%clk 0:00:52]} 23. Bd3 {[%clk
0:01:30.9]} 23... Rb4 {[%clk 0:00:45]} 24. Rxb4 {[%clk 0:00:43.7]} 24... axb4
{[%clk 0:00:44.6]} 25. Ng3 {[%clk 0:00:37.4]} 25... Bb7 {[%clk 0:00:42.9]} 26.
h5 {[%clk 0:00:34]} 26... Bc6 {[%clk 0:00:36]} 27. Kb1 {[%clk 0:00:30.4]} 27...
Ba4 {[%clk 0:00:15.9]} 28. Rh1 {[%clk 0:00:13]} 28... b3 {[%clk 0:00:13.8]} 29.
axb3 {[%clk 0:00:09.8]} 29... Bxb3 {[%clk 0:00:12.8]} 30. Nf5 {[%clk 0:00:08.7]}
30... Ra8 {[%clk 0:00:06.5]} 31. Nxd4 {[%clk 0:00:09.4]} 31... cxd4 {[%clk
0:00:02.4]} 32. Bxh7 {[%clk 0:00:10.7]} 1-0

[Event "*** Titled Tuesday Blitz"]
[Site "Chess.com"]
[Date "2019.06.04"]
[Round "7"]
[White "olksuna"]
[Black "Fins0905"]
[Result "1-0"]
[WhiteElo "2499"]
[BlackElo "2657"]
[TimeControl "180+2"]
[EndTime "14:35:17 PDT"]
[Termination "olksuna won by resignation"]

1. c4 {[%clk 0:02:56.8]} 1... c6 {[%clk 0:02:55.5]} 2. Nf3 {[%clk 0:02:55]} 2...
d5 {[%clk 0:02:56.4]} 3. e3 {[%clk 0:02:56.4]} 3... Nf6 {[%clk 0:02:57.3]} 4. b3
{[%clk 0:02:57]} 4... Bf5 {[%clk 0:02:57.2]} 5. Bb2 {[%clk 0:02:56.7]} 5... e6
{[%clk 0:02:58.5]} 6. g3 {[%clk 0:02:41.6]} 6... Na6 {[%clk 0:02:52.4]} 7. a3
{[%clk 0:02:34.5]} 7... dxc4 {[%clk 0:02:43.9]} 8. Bxc4 {[%clk 0:02:28.8]} 8...
Bh3 {[%clk 0:01:55.4]} 9. Nc3 {[%clk 0:02:13.6]} 9... Nc7 {[%clk 0:01:45.3]} 10.
Ng5 {[%clk 0:01:53.3]} 10... Bg2 {[%clk 0:01:27.5]} 11. Rg1 {[%clk 0:01:53.6]}
11... Bd5 {[%clk 0:01:28.5]} 12. Qc2 {[%clk 0:01:51.7]} 12... h6 {[%clk
0:01:25]} 13. Nge4 {[%clk 0:01:52.2]} 13... Be7 {[%clk 0:01:20]} 14. g4 {[%clk
0:01:49.5]} 14... b5 {[%clk 0:01:14.2]} 15. Be2 {[%clk 0:01:46.7]} 15... Qd7
{[%clk 0:01:01.1]} 16. h4 {[%clk 0:01:45.1]} 16... O-O-O {[%clk 0:00:56.6]} 17.
d4 {[%clk 0:01:24.1]} 17... Nxe4 {[%clk 0:00:42.9]} 18. Nxe4 {[%clk 0:01:26]}
18... Bxe4 {[%clk 0:00:40.4]} 19. Qxe4 {[%clk 0:01:26.1]} 19... Bxh4 {[%clk
0:00:41.9]} 20. Rc1 {[%clk 0:01:18.8]} 20... Kb7 {[%clk 0:00:38.9]} 21. Bf3
{[%clk 0:01:01.8]} 21... Nd5 {[%clk 0:00:35.6]} 22. Ke2 {[%clk 0:01:01.4]} 22...
Rhe8 {[%clk 0:00:29.7]} 23. Rc2 {[%clk 0:00:52.1]} 23... Bg5 {[%clk 0:00:27.2]}
24. Rgc1 {[%clk 0:00:42.7]} 24... Rc8 {[%clk 0:00:28.5]} 25. a4 {[%clk
0:00:27.4]} 25... a6 {[%clk 0:00:27.1]} 26. axb5 {[%clk 0:00:25.3]} 26... axb5
{[%clk 0:00:27]} 27. Qd3 {[%clk 0:00:26.3]} 27... f5 {[%clk 0:00:21.3]} 28. Ba3
{[%clk 0:00:20.5]} 28... fxg4 {[%clk 0:00:14.6]} 29. Bxg4 {[%clk 0:00:20.8]}
29... Be7 {[%clk 0:00:15.6]} 30. Bxe7 {[%clk 0:00:19.5]} 30... Rxe7 {[%clk
0:00:17.1]} 31. Rc5 {[%clk 0:00:19.5]} 31... Qd6 {[%clk 0:00:13.8]} 32. Bf3
{[%clk 0:00:19.8]} 32... Kb6 {[%clk 0:00:13.3]} 33. Qd2 {[%clk 0:00:19]} 33...
Ra7 {[%clk 0:00:12.3]} 34. R1c2 {[%clk 0:00:13.7]} 34... Ra3 {[%clk 0:00:11.5]}
35. Bxd5 {[%clk 0:00:14.4]} 35... exd5 {[%clk 0:00:12.3]} 36. Qb4 {[%clk
0:00:15.6]} 36... Rca8 {[%clk 0:00:03.5]} 37. Rxb5+ {[%clk 0:00:12.5]} 37... Kc7
{[%clk 0:00:04.6]} 38. Rb7+ {[%clk 0:00:12.1]} 1-0

[Event "*** Titled Tuesday Blitz"]
[Site "Chess.com"]
[Date "2019.06.04"]
[Round "7"]
[White "LuisFSiles"]
[Black "Filip_Covic"]
[Result "0-1"]
[WhiteElo "2170"]
[BlackElo "2372"]
[TimeControl "180+2"]
[EndTime "14:35:19 PDT"]
[Termination "Filip_Covic won by resignation"]

1. e4 {[%clk 0:03:01.9]} 1... c5 {[%clk 0:03:01.2]} 2. Nf3 {[%clk 0:03:02.2]}
2... Nf6 {[%clk 0:03:00.3]} 3. e5 {[%clk 0:02:57.4]} 3... Nd5 {[%clk 0:03:01]}
4. c3 {[%clk 0:02:58.4]} 4... Nc6 {[%clk 0:02:56.4]} 5. d4 {[%clk 0:02:57.7]}
5... e6 {[%clk 0:02:55.6]} 6. Bc4 {[%clk 0:02:54.8]} 6... d6 {[%clk 0:02:49.9]}
7. O-O {[%clk 0:02:53.5]} 7... Be7 {[%clk 0:02:48]} 8. Qe2 {[%clk 0:02:51.8]}
8... cxd4 {[%clk 0:02:46.4]} 9. cxd4 {[%clk 0:02:52]} 9... O-O {[%clk
0:02:43.1]} 10. Bd2 {[%clk 0:02:37.3]} 10... Qb6 {[%clk 0:02:35.6]} 11. Bc3
{[%clk 0:02:11.2]} 11... Nxc3 {[%clk 0:02:30.2]} 12. bxc3 {[%clk 0:02:08.5]}
12... dxe5 {[%clk 0:02:32.1]} 13. dxe5 {[%clk 0:02:04.6]} 13... Rd8 {[%clk
0:02:23.3]} 14. Nbd2 {[%clk 0:01:59]} 14... Qc7 {[%clk 0:02:19.4]} 15. Rfe1
{[%clk 0:01:56.6]} 15... Na5 {[%clk 0:02:19.2]} 16. Rad1 {[%clk 0:01:40.7]}
16... b6 {[%clk 0:02:13.4]} 17. Bd3 {[%clk 0:01:33]} 17... Bb7 {[%clk
0:02:03.6]} 18. Ne4 {[%clk 0:01:33.6]} 18... h6 {[%clk 0:01:51.2]} 19. Qe3
{[%clk 0:01:27]} 19... Nc4 {[%clk 0:01:35.1]} 20. Bxc4 {[%clk 0:00:56.4]} 20...
Qxc4 {[%clk 0:01:37]} 21. Nd6 {[%clk 0:00:49.4]} 21... Bxd6 {[%clk 0:01:34.8]}
22. exd6 {[%clk 0:00:51]} 22... Rac8 {[%clk 0:01:32.7]} 23. Ne5 {[%clk
0:00:15.2]} 23... Qxc3 {[%clk 0:01:31.8]} 24. Qf4 {[%clk 0:00:16.5]} 24... f6
{[%clk 0:01:24.7]} 25. Ng6 {[%clk 0:00:16]} 25... e5 {[%clk 0:01:25.7]} 26. Ne7+
{[%clk 0:00:16.4]} 26... Kf7 {[%clk 0:01:23.4]} 27. Qg4 {[%clk 0:00:16.2]} 27...
Rc4 {[%clk 0:01:03]} 28. Qh5+ {[%clk 0:00:13.5]} 28... Kf8 {[%clk 0:01:01.4]}
29. Ng6+ {[%clk 0:00:13.4]} 29... Kg8 {[%clk 0:01:01.3]} 30. Ne7+ {[%clk
0:00:14.6]} 30... Kh8 {[%clk 0:01:01.6]} 31. Qf7 {[%clk 0:00:14.9]} 31... Rg4
{[%clk 0:00:52.4]} 32. g3 {[%clk 0:00:12.1]} 32... Qf3 {[%clk 0:00:51]} 33. Nd5
{[%clk 0:00:11.9]} 33... Re4 {[%clk 0:00:27]} 34. d7 {[%clk 0:00:11.4]} 34...
Rxe1+ {[%clk 0:00:24.8]} 35. Rxe1 {[%clk 0:00:12.1]} 35... Bxd5 {[%clk
0:00:26.2]} 36. Kf1 {[%clk 0:00:08.7]} 36... Bxf7 {[%clk 0:00:25]} 37. Re3
{[%clk 0:00:04.8]} 37... Qd1+ {[%clk 0:00:21]} 0-1